bitfinex-derivatives/quotes_BTCF0:USTF0_20251216
["timestamp","ask_amount","ask_price","bid_price","bid_amount"]
[1765893901232,0.12868,86508.0,86475.0,0.0115665]
[1765893901422,0.0115651,86486.0,86457.0,0.0115688]
[1765893901625,0.0115626,86505.0,86492.0,0.0115642]
[1765893901626,0.0115625,86505.0,86492.0,0.0115642]
[1765893901826,0.19132,86519.0,86480.0,0.29475972]
[1765893901827,0.0115628,86504.0,86480.0,0.29475972]
[1765893902027,0.0115622,86508.0,86492.0,0.0115642]
[1765893902226,0.0001731,86509.0,86491.0,0.00017346]
[1765893902428,0.0287579,86524.0,86491.0,0.00017346]
[1765893902429,0.05,86533.0,86508.0,0.16234]
[1765893902637,0.0615589,86533.0,86516.0,0.011561]
[1765893902825,0.0115592,86530.0,86516.0,0.011561]
[1765893903144,0.29475972,86530.0,86508.0,0.173902]
[1765893903441,0.30631902,86530.0,86514.0,0.0115612]
[1765893903635,0.29475972,86530.0,86509.0,0.00017346]
[1765893903829,0.0115609,86518.0,86509.0,0.00017346]
[1765893904441,0.0115612,86515.0,86509.0,0.00017346]
[1765893904939,0.0115602,86523.0,86512.0,0.0115616]
[1765893905239,0.05,86533.0,86510.0,0.29475972]
[1765893905536,0.05,86533.0,86522.0,0.0115602]
[1765893905748,0.05,86533.0,86532.0,0.51286]
[1765893906229,0.26655,86530.0,86529.0,0.0115592]
[1765893906436,0.05,86533.0,86508.0,0.15054]
[1765893906730,0.05,86533.0,86510.0,0.29475972]
[1765893906930,0.05,86533.0,86508.0,0.15054]
[1765893906931,0.05,86533.0,86532.0,0.51286]
[1765893907334,0.35728,86569.0,86537.0,0.51286]
[1765893907536,0.29475972,86560.0,86544.0,0.00017336]
[1765893907848,0.35728,86569.0,86558.0,0.0115554]
[1765893908030,0.0115545,86566.0,86550.0,0.0115565]
[1765893908231,0.29475972,86570.0,86556.0,0.0115556]
[1765893908431,0.0115524,86581.0,86550.0,0.29475972]
[1765893908635,0.01386297,86578.0,86560.0,0.0115551]
[1765893909140,0.01386287,86578.0,86544.0,0.15071336]
[1765893909344,0.00231007,86578.0,86552.0,0.0115561]
[1765893909537,0.00231007,86578.0,86566.0,0.0115543]
[1765893909738,0.00231007,86578.0,86569.0,0.0115539]
[1765893910041,0.00231007,86578.0,86577.0,0.51286]
[1765893910232,0.002309,86618.0,86580.0,0.15054]
[1765893910437,0.0115482,86613.0,86595.0,0.0115504]
[1765893910637,0.0115488,86608.0,86590.0,0.011551]
[1765893910939,0.0115476,86617.0,86599.0,0.01155]
[1765893911141,0.002309,86618.0,86591.0,0.1732]
[1765893911341,0.002309,86618.0,86607.0,0.0115488]
[1765893911537,0.002309,86618.0,86611.0,0.0115483]
[1765893911748,0.002309,86618.0,86612.0,0.51286]
[1765893911749,0.001,86613.0,86612.0,0.51286]
[1765893912834,0.0317051,86658.0,86604.0,0.00017325]
[1765893912835,0.1128446,86652.0,86621.0,0.162087]
[1765893913031,0.0115434,86649.0,86628.0,0.01171924]
[1765893913235,0.00230794,86658.0,86630.0,0.29475972]
[1765893913450,0.00230794,86658.0,86638.0,0.0115447]
[1765893913836,0.00230794,86658.0,86645.0,0.0115437]
[1765893914036,0.00230794,86658.0,86640.0,0.15054]
[1765893914037,0.00230794,86658.0,86657.0,0.51286]
[1765893914649,0.33444,86692.0,86657.0,0.51286]
[1765893914944,0.001,86658.0,86657.0,0.24982]
[1765893915144,0.0115392,86680.0,86657.0,0.24982]
[1765893915349,0.0115386,86685.0,86657.0,0.24982]
[1765893915643,0.0115378,86691.0,86657.0,0.2613621]
[1765893915946,0.0115371,86696.0,86663.0,0.0115414]
[1765893916144,0.0115371,86696.0,86671.0,0.00017314]
[1765893916352,0.0115364,86701.0,86671.0,0.00017314]
[1765893916646,0.0115363,86702.0,86671.0,0.00017314]
[1765893916849,0.002,86688.0,86687.0,0.51286]
[1765893917344,0.00778701,86727.0,86687.0,0.51286]
[1765893917345,0.0115355,86708.0,86687.0,0.51286]
[1765893917538,0.00778701,86727.0,86678.0,0.15054]
[1765893917539,0.04230687,86698.0,86678.0,0.15054]
[1765893917740,0.0115385,86685.0,86671.0,0.00017314]
[1765893917937,0.00230687,86698.0,86671.0,0.00117314]
[1765893918136,0.0115371,86696.0,86671.0,0.00117314]
[1765893918337,0.0115377,86692.0,86671.0,0.00117314]
[1765893918549,0.0115383,86687.0,86671.0,0.00117314]
[1765893918736,0.5333,86672.0,86671.0,0.00117314]
[1765893919334,0.14946,86697.0,86671.0,0.00017314]
[1765893919532,0.0115394,86679.0,86671.0,0.00017314]
[1765893919739,0.0115399,86675.0,86671.0,0.00017314]
[1765893919939,0.5333,86672.0,86671.0,0.00017314]
[1765893920636,0.5733,86672.0,86623.0,0.09359176]
[1765893920842,0.2780945,86640.0,86609.0,0.0115486]
[1765893921140,0.0115462,86628.0,86602.0,0.1620895]
[1765893921338,0.1340846,86640.0,86602.0,0.15054]
[1765893921538,0.0115451,86636.0,86611.0,0.0115482]
[1765893921852,0.00017203,86632.0,86620.0,0.15054]
[1765893922353,0.00017203,86632.0,86615.0,0.00017313]
[1765893922651,0.01171773,86632.0,86615.0,0.00017313]
[1765893923042,0.00017203,86632.0,86615.0,0.00017313]
[1765893923244,1.44412,86664.0,86640.0,0.15054]
[1765893923447,0.0115402,86673.0,86648.0,0.0115434]
[1765893923649,0.0115406,86670.0,86642.0,0.0115442]
[1765893923844,0.0115413,86665.0,86640.0,0.15054]
[1765893924045,0.0115413,86665.0,86641.0,0.0115444]
[1765893924352,0.0115425,86656.0,86644.0,0.00017313]
[1765893924543,0.0115417,86661.0,86644.0,0.00017313]
[1765893924945,0.0115407,86669.0,86649.0,0.0115432]
[1765893925141,0.0115407,86669.0,86644.0,0.00017313]
[1765893925142,0.0115419,86660.0,86644.0,0.00017313]
[1765893925653,0.0577,86675.0,86644.0,0.00017313]
[1765893925839,0.0115417,86661.0,86644.0,0.00017313]
[1765893926037,0.0115428,86653.0,86644.0,0.00017313]
[1765893926247,0.0115389,86683.0,86644.0,0.00017313]
[1765893926248,0.0115376,86693.0,86644.0,0.00317313]
[1765893926550,0.01154,86674.0,86644.0,0.00317313]
[1765893926750,0.08128,86688.0,86644.0,0.00317313]
[1765893926751,0.0115393,86679.0,86644.0,0.00317313]
[1765893926946,0.53989222,86700.0,86644.0,0.00317313]
[1765893927154,0.0115396,86677.0,86662.0,0.00017313]
[1765893927352,0.0115372,86695.0,86662.0,0.00017313]
[1765893927554,0.0115406,86670.0,86662.0,0.00017313]
[1765893927939,0.01154,86675.0,86662.0,0.00017313]
[1765893928155,0.0115393,86679.0,86662.0,0.00017313]
[1765893928345,0.14946,86697.0,86662.0,0.00017313]
[1765893928647,0.0115399,86675.0,86662.0,0.00017313]
[1765893929352,0.011539,86682.0,86662.0,0.00017313]
[1765893929548,0.12202999,86720.0,86662.0,0.00017313]
[1765893929549,0.0115384,86686.0,86666.0,0.0115409]
[1765893929745,0.0115384,86686.0,86669.0,0.0115405]
[1765893929945,0.11568,86694.0,86669.0,0.0115405]
[1765893929946,0.0115389,86683.0,86669.0,0.0115405]
[1765893930146,0.0115389,86683.0,86667.0,0.0115408]
[1765893930342,0.0115383,86687.0,86669.0,0.0115406]
[1765893930656,0.66092222,86720.0,86679.0,0.0115392]
[1765893930955,0.0115352,86710.0,86697.0,0.6634]
[1765893931140,1.44372,86724.0,86680.0,0.00017313]
[1765893931141,0.0115362,86703.0,86680.0,0.00017313]
[1765893931341,0.01384367,86698.0,86680.0,0.01171223]
[1765893931547,0.0115372,86695.0,86680.0,0.00017313]
[1765893931754,0.00230687,86698.0,86687.0,0.0115382]
[1765893931950,0.00230687,86698.0,86697.0,0.6634]
[1765893933155,0.02036,86726.0,86697.0,0.6749368]
[1765893933453,0.0115319,86735.0,86703.0,0.00017302]
[1765893933655,0.0115348,86713.0,86703.0,0.00017302]
[1765893933857,0.0115343,86717.0,86703.0,0.00017302]
[1765893934066,0.01932001,86727.0,86710.0,0.0115351]
[1765893934250,0.00778701,86727.0,86704.0,0.011536]
[1765893934555,0.00778701,86727.0,86711.0,0.011535]
[1765893934863,0.00778701,86727.0,86703.0,0.00017302]
[1765893934864,0.0115335,86723.0,86705.0,0.0115357]
[1765893935050,0.01932001,86727.0,86703.0,0.00017302]
[1765893935248,0.00778701,86727.0,86717.0,0.0115342]
[1765893935654,0.00778701,86727.0,86726.0,0.51103]
[1765893935854,0.00230581,86738.0,86737.0,0.5225616]
[1765893936355,0.0115268,86773.0,86737.0,0.4]
[1765893936666,0.011528,86764.0,86745.0,0.0115304]
[1765893936858,0.011528,86764.0,86746.0,0.00017291]
[1765893937059,0.0115295,86753.0,86746.0,0.00017291]
[1765893937365,0.0115288,86759.0,86746.0,0.00017291]
[1765893937557,0.0115292,86756.0,86746.0,0.00017291]
[1765893937757,0.0115281,86764.0,86746.0,0.00017291]
[1765893938078,0.0115273,86770.0,86754.0,0.15333]
[1765893938258,0.0115267,86774.0,86755.0,0.0115292]
[1765893938457,0.00230474,86778.0,86766.0,0.0115277]
[1765893938661,0.00230474,86778.0,86777.0,0.25364]
[1765893938965,0.07209618,86823.0,86789.0,0.51103]
[1765893939161,0.07209618,86823.0,86773.0,0.15333]
[1765893939162,0.02642221,86817.0,86795.0,0.0001728]
[1765893939368,0.0115227,86805.0,86795.0,0.0001728]
[1765893939861,0.0115231,86801.0,86795.0,0.0001728]
[1765893940058,0.0115195,86829.0,86795.0,0.0001728]
[1765893940261,0.00430368,86818.0,86801.0,0.011523]
[1765893940460,0.00430368,86818.0,86795.0,0.0001728]
[1765893940666,0.0115217,86812.0,86795.0,0.0116966]
[1765893940960,0.2637,86796.0,86795.0,0.0001728]
[1765893941161,0.50397,86796.0,86795.0,0.0001728]
[1765893941666,0.4,86796.0,86758.0,0.01468]
[1765893941868,0.29260181,86790.0,86754.0,0.15333]
[1765893942067,0.0115259,86780.0,86762.0,0.0115282]
[1765893942369,0.29260181,86800.0,86773.0,0.15333]
[1765893942556,0.011525,86787.0,86778.0,0.0001728]
[1765893942753,0.00017171,86795.0,86778.0,0.0001728]
[1765893943370,0.00017171,86795.0,86780.0,0.29260181]
[1765893943553,0.00017171,86795.0,86791.0,0.0115244]
[1765893943958,0.00017171,86795.0,86780.0,0.29260181]
[1765893944159,0.00017171,86795.0,86778.0,0.0001728]
[1765893944560,0.00017171,86795.0,86779.0,0.011526]
[1765893944761,0.00017171,86795.0,86778.0,0.0001728]
[1765893944954,0.01169561,86795.0,86778.0,0.0021728]
[1765893945168,0.00017171,86795.0,86778.0,0.0021728]
[1765893945370,0.01169571,86795.0,86778.0,0.0021728]
[1765893945664,0.01169571,86795.0,86778.0,0.0001728]
[1765893945870,0.0115248,86789.0,86779.0,0.002]
[1765893946266,0.01169561,86795.0,86779.0,0.013526]
[1765893946464,0.01169561,86795.0,86781.0,0.0115257]
[1765893946666,0.00017171,86795.0,86780.0,0.15333]
[1765893947165,0.0115248,86789.0,86778.0,0.0021728]
[1765893947367,0.0115252,86786.0,86778.0,0.0021728]
[1765893947567,0.0115246,86790.0,86778.0,0.0021728]
[1765893947869,0.00017171,86795.0,86785.0,0.0115251]
[1765893948068,0.00017171,86795.0,86778.0,0.0021728]
[1765893948265,0.00017171,86795.0,86794.0,0.51103]
[1765893948466,0.09802368,86818.0,86781.0,0.002]
[1765893948968,0.0115215,86813.0,86798.0,0.0115234]
[1765893949169,0.09802368,86818.0,86793.0,0.0115241]
[1765893949361,0.09802368,86818.0,86807.0,0.0115222]
[1765893949558,0.09802368,86818.0,86803.0,0.0115228]
[1765893949762,0.00230368,86818.0,86814.0,0.0115213]
[1765893949958,0.00230368,86818.0,86817.0,0.51103]
[1765893950270,0.00230368,86818.0,86797.0,0.0001728]
[1765893950674,0.00230368,86818.0,86811.0,0.1648516]
[1765893950973,0.00230368,86818.0,86797.0,0.0001728]
[1765893951166,0.00230368,86818.0,86810.0,0.0115219]
[1765893951364,0.00230368,86818.0,86798.0,0.0115234]
[1765893951569,0.00230368,86818.0,86803.0,0.003]
[1765893951871,0.50397,86804.0,86803.0,0.003]
[1765893952376,0.011521,86817.0,86797.0,0.0001728]
[1765893952377,0.5154935,86798.0,86797.0,0.0001728]
[1765893953085,0.50397,86783.0,86782.0,0.00012024]
[1765893953266,0.44852441,86810.0,86782.0,0.00012024]
[1765893953471,0.0115231,86801.0,86788.0,0.0115247]
[1765893953672,0.54788,86812.0,86788.0,0.0115247]
[1765893953673,0.0115236,86798.0,86788.0,0.0115247]
[1765893953866,0.0001728,86802.0,86794.0,0.011524]
[1765893954171,0.0001728,86802.0,86784.0,0.0001728]
[1765893954369,0.0001728,86802.0,86795.0,0.0115238]
[1765893954671,0.0001728,86802.0,86801.0,0.51103]
[1765893955474,0.0011728,86802.0,86801.0,0.51103]
[1765893955788,0.0011728,86802.0,86773.0,0.15333]
[1765893956073,0.0011728,86802.0,86775.0,0.0115265]
[1765893956279,0.0001728,86802.0,86801.0,0.002]
[1765893956469,0.0001728,86802.0,86801.0,0.25564]
[1765893956672,0.0001728,86802.0,86801.0,0.51303]
[1765893956873,0.0001728,86802.0,86801.0,0.002]
[1765893957082,0.0001728,86802.0,86801.0,0.51303]
[1765893957279,0.00230368,86818.0,86817.0,0.265161]
[1765893957671,0.00230368,86818.0,86817.0,0.522551]
[1765893957974,1.70002262,86858.0,86820.0,0.15333]
[1765893958278,0.0115158,86857.0,86830.0,0.0001728]
[1765893958467,1.70002262,86858.0,86843.0,0.0115174]
[1765893958665,1.70002262,86858.0,86830.0,0.0001728]
[1765893958666,0.25870262,86858.0,86840.0,0.15333]
[1765893958869,0.25870262,86858.0,86831.0,0.011519]
[1765893959177,0.01381822,86858.0,86840.0,0.15333]
[1765893959474,0.00230262,86858.0,86840.0,0.15333]
[1765893959672,0.00230262,86858.0,86851.0,0.0115164]
[1765893959869,0.00230262,86858.0,86840.0,0.15333]
[1765893960070,0.00330262,86858.0,86845.0,0.0115172]
[1765893960270,0.00330262,86858.0,86857.0,0.5225457]
[1765893960470,0.00330262,86858.0,86840.0,0.60185441]
[1765893960471,0.00330262,86858.0,86851.0,0.0115164]
[1765893960673,0.00330262,86858.0,86849.0,0.0001727]
[1765893960674,0.5154866,86850.0,86849.0,0.0001727]
[1765893960876,0.50397,86850.0,86849.0,0.0001727]
[1765893961075,0.4,86850.0,86800.0,0.15333]
[1765893961268,0.0115196,86828.0,86800.0,0.15333]
[1765893961474,0.0115184,86837.0,86800.0,0.15333]
[1765893961673,0.0115168,86849.0,86809.0,0.0115219]
[1765893961882,0.0115192,86831.0,86813.0,0.0115215]
[1765893962180,0.0115192,86831.0,86830.0,0.51103]
[1765893962181,0.00017237,86831.0,86830.0,0.51103]
[1765893962881,0.00017237,86831.0,86822.0,0.0115202]
[1765893963381,0.00017237,86831.0,86820.0,0.15333]
[1765893963584,0.03820843,86830.0,86814.0,0.0115213]
[1765893963878,0.00017237,86831.0,86824.0,0.01152]
[1765893964079,0.00017237,86831.0,86820.0,0.14911]
[1765893964284,0.00017237,86831.0,86828.0,0.0115194]
[1765893964481,0.00017237,86831.0,86830.0,0.24364]
[1765893964685,0.00017237,86831.0,86830.0,0.49091]
[1765893965279,0.00017237,86831.0,86830.0,0.48991]
[1765893965478,0.00017237,86831.0,86829.0,0.0115194]
[1765893965679,0.00017237,86831.0,86830.0,0.48991]
[1765893966275,0.00017237,86831.0,86830.0,0.49091]
[1765893966477,0.00017237,86831.0,86830.0,0.001]
[1765893966674,0.00017237,86831.0,86830.0,0.64002]
[1765893966880,0.01381822,86858.0,86830.0,0.15011]
[1765893967083,0.02684719,86857.0,86836.0,0.0115183]
[1765893967281,0.02684719,86856.0,86855.0,0.48991]
[1765893967481,0.02684719,86856.0,86820.0,0.14911]
[1765893967691,0.1990733,86840.0,86835.0,0.0115186]
[1765893967886,0.02684719,86839.0,86830.0,0.001]
[1765893968093,0.25051,86831.0,86830.0,0.001]
[1765893968286,0.27735719,86831.0,86830.0,0.001]
[1765893968487,0.02684719,86831.0,86830.0,0.001]
[1765893969185,0.51673719,86831.0,86830.0,0.001]
[1765893969390,0.2620292,86830.0,86829.0,0.0001727]
[1765893969580,0.52825639,86830.0,86829.0,0.0001727]
[1765893969881,0.0115195,86829.0,86803.0,0.0115228]
[1765893970082,0.0115182,86838.0,86761.0,0.09442449]
[1765893970083,0.0115233,86800.0,86780.0,0.1990733]
[1765893970292,0.02641937,86799.0,86782.0,0.01164584]
[1765893970484,0.011522,86809.0,86782.0,0.00012024]
[1765893970485,0.011525,86787.0,86782.0,0.00012024]
[1765893970672,0.25051,86783.0,86782.0,0.00012024]
[1765893970873,0.00017282,86791.0,86787.0,0.0115249]
[1765893971075,0.00017282,86791.0,86790.0,0.5014346]
[1765893971281,0.25051,86783.0,86782.0,0.00012024]
[1765893971488,0.51630029,86783.0,86782.0,0.00012024]
[1765893971796,0.00017282,86791.0,86782.0,0.00012024]
[1765893971979,0.00017282,86791.0,86790.0,0.5014346]
[1765893972287,0.00017282,86791.0,86790.0,0.48991]
[1765893972473,0.1990733,86810.0,86792.0,0.14911]
[1765893972678,0.0115225,86806.0,86792.0,0.1606342]
[1765893972888,0.02642122,86805.0,86795.0,0.0115239]
[1765893973084,0.02642122,86804.0,86792.0,0.14911]
[1765893973283,0.02642122,86803.0,86800.0,0.0115232]
[1765893973490,0.06057588,86831.0,86819.0,0.0115207]
[1765893973779,0.08144825,86841.0,86800.0,0.0115232]
[1765893973780,0.02642503,86830.0,86816.0,0.00017282]
[1765893973985,0.02642503,86829.0,86816.0,0.00017282]
[1765893974184,0.02642503,86829.0,86828.0,0.5014295]
[1765893974382,0.10150942,86863.0,86819.0,0.1990733]
[1765893974383,0.06057588,86860.0,86830.0,0.14911]
[1765893974581,0.02642312,86857.0,86845.0,0.0115172]
[1765893974778,0.02642312,86856.0,86855.0,0.5014259]
[1765893975085,0.02642312,86856.0,86845.0,0.0115172]
[1765893975389,0.02642312,86855.0,86845.0,0.0115172]
[1765893975579,0.02642312,86854.0,86845.0,0.0115172]
[1765893975777,0.06057588,86873.0,86857.0,0.48991]
[1765893975974,0.06057588,86882.0,86857.0,0.48991]
[1765893976183,0.02641742,86881.0,86870.0,0.1990733]
[1765893976383,0.06057588,86901.0,86883.0,0.48991]
[1765893976590,0.06057588,86906.0,86883.0,0.48991]
[1765893976891,0.0115101,86899.0,86880.0,1.64911]
[1765893977188,0.0115092,86906.0,86880.0,1.64911]
[1765893977486,0.0263782,86905.0,86884.0,0.00017271]
[1765893977685,0.0263782,86904.0,86884.0,0.00017271]
[1765893977883,0.48989,86885.0,86884.0,0.00017271]
[1765893978080,0.51627079,86885.0,86884.0,0.00017271]
[1765893978279,0.02638079,86885.0,86884.0,0.00017271]
[1765893978477,0.44733299,86910.0,86884.0,0.49008271]
[1765893978478,0.12828,86898.0,86884.0,0.49008271]
[1765893978782,0.48989,86885.0,86884.0,0.00017271]
[1765893978989,0.51625649,86885.0,86884.0,0.00017271]
[1765893979179,0.02636649,86885.0,86884.0,0.00017271]
[1765893979380,0.0115103,86898.0,86884.0,0.00017271]
[1765893979581,0.02635057,86897.0,86884.0,0.00017271]
[1765893979781,0.02635057,86896.0,86884.0,0.00017271]
[1765893980083,0.25051,86885.0,86884.0,0.00017271]
[1765893980285,0.0115098,86902.0,86884.0,0.00017271]
[1765893980593,0.02633292,86901.0,86884.0,0.00017271]
[1765893980776,0.0115102,86899.0,86884.0,0.00017271]
[1765893980982,0.02633292,86898.0,86884.0,0.00217271]
[1765893981182,0.25051,86885.0,86884.0,0.00217271]
[1765893981385,0.06057588,86913.0,86884.0,0.00217271]
[1765893981589,0.01151,86900.0,86884.0,0.00417271]
[1765893981779,0.02631882,86899.0,86885.0,0.0115119]
[1765893981982,0.02631882,86898.0,86884.0,0.00417271]
[1765893982183,0.04656,86912.0,86884.0,0.00217271]
[1765893982184,0.02631882,86897.0,86884.0,0.00217271]
[1765893982482,0.48989,86885.0,86884.0,0.00117271]
[1765893982799,0.5161996,86885.0,86884.0,0.002]
[1765893983103,0.5161996,86885.0,86840.0,0.14911]
[1765893983104,0.0115153,86860.0,86840.0,0.14911]
[1765893983280,0.02630728,86859.0,86841.0,0.0115178]
[1765893983484,0.48236,86874.0,86846.0,0.01162974]
[1765893983794,0.0115143,86868.0,86851.0,0.00017261]
[1765893983995,0.0115145,86866.0,86851.0,0.00017261]
[1765893984293,0.02630752,86865.0,86852.0,0.0115163]
[1765893984480,0.02630752,86864.0,86856.0,0.0115157]
[1765893984684,0.00017227,86869.0,86851.0,0.00017261]
[1765893984884,0.02631075,86868.0,86851.0,0.00017261]
[1765893985086,0.02631075,86867.0,86851.0,0.00317261]
[1765893985291,0.00017227,86869.0,86868.0,0.24364]
[1765893985488,0.0115104,86897.0,86860.0,0.14911]
[1765893985790,0.0115076,86918.0,86860.0,0.14911]
[1765893985791,0.02631372,86896.0,86866.0,0.0115144]
[1765893985988,0.011511,86893.0,86870.0,0.0115139]
[1765893986183,0.02988,86901.0,86860.0,0.14911]
[1765893986184,0.02631372,86892.0,86860.0,0.59644299]
[1765893986384,0.02631372,86891.0,86864.0,0.0115147]
[1765893986692,0.02631372,86890.0,86871.0,0.0115138]
[1765893986886,0.0115124,86882.0,86872.0,0.00017261]
[1765893987088,0.25051,86873.0,86872.0,0.00017261]
[1765893987281,0.5014035,86873.0,86872.0,0.00017261]
[1765893987484,0.48989,86873.0,86872.0,0.00017261]
[1765893987693,0.0115109,86893.0,86873.0,0.0115135]
[1765893987898,0.02631167,86892.0,86873.0,0.0115135]
[1765893988088,0.0115113,86890.0,86872.0,0.00017261]
[1765893988389,0.0115119,86886.0,86872.0,0.00017261]
[1765893988593,0.02631167,86885.0,86879.0,0.0115126]
[1765893988785,0.02631167,86884.0,86872.0,0.00017261]
[1765893988984,0.02631167,86883.0,86873.0,0.0115135]
[1765893989283,0.02631167,86882.0,86872.0,0.00017261]
[1765893989487,0.03782417,86881.0,86872.0,0.00017261]
[1765893989685,0.5014035,86873.0,86872.0,0.00017261]
[1765893989998,0.48989,86873.0,86872.0,0.00017261]
[1765893990193,0.25051,86873.0,86872.0,0.00017261]
[1765893990399,0.001,86884.0,86872.0,0.01168621]
[1765893990696,0.02630455,86883.0,86872.0,0.00017261]
[1765893990883,0.02630455,86882.0,86881.0,0.24364]
[1765893991085,0.02630455,86882.0,86880.0,0.14911]
[1765893991086,0.001,86884.0,86883.0,0.48991]
[1765893991488,0.001,86883.0,86880.0,0.14911]
[1765893991693,0.001,86883.0,86882.0,0.48991]
[1765893992196,1.44,86922.0,86883.0,0.48991]
[1765893992495,0.02629983,86921.0,86896.0,0.0115105]
[1765893992700,0.02629983,86920.0,86894.0,0.00017261]
[1765893993003,0.02629983,86919.0,86894.0,0.00017261]
[1765893993201,0.02629983,86918.0,86897.0,0.0115103]
[1765893993398,0.02629983,86917.0,86908.0,0.0115088]
[1765893993600,0.19004,86926.0,86906.0,0.14911]
[1765893993895,0.03780287,86925.0,86907.0,0.011509]
[1765893994203,0.0115074,86920.0,86906.0,0.14911]
[1765893994498,0.0115058,86932.0,86906.0,0.14911]
[1765893994703,0.0115061,86930.0,86912.0,0.0115083]
[1765893995396,0.00766151,86947.0,86906.0,0.14911]
[1765893995397,0.0115053,86936.0,86906.0,0.15111]
[1765893995606,0.0115058,86932.0,86906.0,0.15211]
[1765893995992,0.07608,86943.0,86907.0,0.011509]
[1765893996193,0.07608,86943.0,86904.0,0.00017261]
[1765893996194,0.0115079,86916.0,86912.0,0.002]
[1765893996393,0.0115077,86917.0,86912.0,0.004]
[1765893996689,0.47374,86913.0,86912.0,0.002]
[1765893996890,0.47374,86905.0,86904.0,2.61e-06]
[1765893997091,0.47374,86905.0,86875.0,0.0115132]
[1765893997092,0.02595676,86905.0,86880.0,0.13902]
[1765893997295,0.7382,86915.0,86888.0,0.0115114]
[1765893997501,0.0115098,86902.0,86880.0,0.13902]
[1765893997795,0.7382,86915.0,86880.0,0.13902]
[1765893997997,0.4852489,86908.0,86907.0,0.002]
[1765893998201,0.51120173,86908.0,86907.0,0.002]
[1765893998809,0.0115106,86896.0,86889.0,0.00017261]
[1765893999106,0.47374,86890.0,86889.0,0.00017261]
[1765893999603,0.00017261,86898.0,86889.0,0.00017261]
[1765893999803,0.00017261,86898.0,86895.0,0.0115106]
[1765894000304,0.00017261,86898.0,86897.0,0.44104]
[1765894000509,0.001,86908.0,86907.0,0.452549]
[1765894000698,0.003,86908.0,86907.0,0.452549]
[1765894000901,0.0115055,86934.0,86907.0,0.4]
[1765894001110,0.0115055,86934.0,86900.0,0.13902]
[1765894001111,0.0115063,86928.0,86900.0,0.13902]
[1765894001298,0.0115056,86933.0,86917.0,0.0115077]
[1765894001605,0.0115056,86933.0,86900.0,0.13902]
[1765894001606,0.02601095,86932.0,86920.0,0.0115072]
[1765894001796,0.23096,86940.0,86916.0,0.01168041]
[1765894001797,0.02601095,86931.0,86916.0,0.01168041]
[1765894001998,0.47374,86917.0,86916.0,0.00017261]
[1765894002507,0.49978175,86917.0,86916.0,0.00017261]
[1765894003209,0.0115087,86910.0,86881.0,0.0115125]
[1765894003506,0.02604175,86909.0,86908.0,0.0115089]
[1765894003805,0.02604175,86909.0,86884.0,0.011512]
[1765894004006,0.00017261,86905.0,86888.0,0.00017261]
[1765894004304,0.00017261,86905.0,86898.0,0.0115101]
[1765894004503,0.02610089,86904.0,86901.0,0.0115097]
[1765894004709,0.02610089,86903.0,86900.0,0.13902]
[1765894005006,0.00017261,86905.0,86904.0,0.22269]
[1765894005206,0.02627383,86905.0,86900.0,0.13902]
[1765894005397,0.02610122,86904.0,86901.0,0.0115098]
[1765894005593,0.02610122,86904.0,86903.0,0.44104]
[1765894005800,0.02610122,86904.0,86901.0,0.001]
[1765894006104,0.02610122,86904.0,86903.0,0.44104]
[1765894006308,0.00017261,86905.0,86904.0,0.4525494]
[1765894008205,0.00017261,86905.0,86903.0,0.001]
[1765894008206,0.47374,86904.0,86903.0,0.001]
[1765894008402,0.49985686,86904.0,86888.0,0.00017261]
[1765894008706,0.01151,86900.0,86888.0,0.01168411]
[1765894008914,0.47374,86889.0,86888.0,0.00017261]
[1765894009211,0.011511,86892.0,86888.0,0.00017261]
[1765894009408,0.3282,86902.0,86875.0,0.22269]
[1765894009409,0.0115133,86876.0,86875.0,0.22269]
[1765894009606,0.3282,86902.0,86875.0,0.22269]
[1765894009607,0.0115117,86887.0,86875.0,0.22269]
[1765894009909,0.3282,86902.0,86875.0,0.22269]
[1765894009910,0.0115125,86882.0,86875.0,0.22269]
[1765894010098,0.02610806,86881.0,86875.0,0.22269]
[1765894010302,0.00017261,86887.0,86875.0,0.22269]
[1765894010503,0.02610748,86886.0,86875.0,0.22269]
[1765894010704,0.02610748,86885.0,86875.0,0.22269]
[1765894011006,0.02610748,86884.0,86881.0,0.0115124]
[1765894011207,0.02610748,86883.0,86881.0,0.0115124]
[1765894011415,0.00017261,86887.0,86881.0,0.0115124]
[1765894011608,0.02610777,86886.0,86881.0,0.0115124]
[1765894011809,0.02610777,86885.0,86881.0,0.0115124]
[1765894012005,0.00017261,86887.0,86886.0,0.58006]
[1765894012205,0.00017261,86887.0,86886.0,0.5915718]
[1765894013515,0.00017261,86887.0,86886.0,0.3742218]
[1765894013816,0.00017261,86887.0,86886.0,0.001]
[1765894014012,0.50004667,86887.0,86886.0,0.001]
[1765894014313,0.47374,86882.0,86881.0,0.001]
[1765894014512,0.02613406,86882.0,86881.0,0.44204]
[1765894014708,0.02614975,86886.0,86881.0,0.001]
[1765894014900,0.47374,86882.0,86881.0,0.001]
[1765894015106,0.49988975,86882.0,86881.0,0.001]
[1765894015300,0.49988975,86882.0,86869.0,0.00017261]
[1765894015510,0.47374,86870.0,86869.0,0.00017261]
[1765894015713,0.49988975,86870.0,86869.0,0.00017261]
[1765894016014,0.0115157,86857.0,86847.0,0.011517]
[1765894016206,0.0115164,86852.0,86846.0,0.00011264]
[1765894016405,0.00230262,86858.0,86846.0,0.00011264]
[1765894016721,0.02614442,86857.0,86852.0,0.0115163]
[1765894016906,0.00914442,86856.0,86852.0,0.0115163]
[1765894017103,0.00230262,86858.0,86851.0,0.0115164]
[1765894017502,0.0115157,86857.0,86847.0,0.0115169]
[1765894017713,0.0115159,86856.0,86846.0,0.00011264]
[1765894017916,0.00230262,86858.0,86849.0,0.0115167]
[1765894018115,0.67388,86857.0,86849.0,0.0115167]
[1765894018317,0.0115166,86851.0,86847.0,0.002]
[1765894018620,0.0115166,86851.0,86847.0,0.005]
[1765894018916,0.47374,86848.0,86847.0,0.003]
[1765894019318,0.485257,86847.0,86846.0,0.00211264]
[1765894019611,0.485257,86847.0,86846.0,0.00011264]
[1765894019811,0.73816,86851.0,86846.0,0.00011264]
[1765894020004,0.0115161,86854.0,86847.0,0.011517]
[1765894020208,0.73816,86853.0,86847.0,0.011517]
[1765894020710,0.00230262,86858.0,86846.0,0.00011264]
[1765894020908,0.47374,86847.0,86846.0,0.00011264]
[1765894021103,0.47374,86847.0,86823.0,1.5]
[1765894021104,0.011519,86832.0,86810.0,0.0115218]
[1765894021305,0.001,86848.0,86810.0,0.0115218]
[1765894021306,0.003,86848.0,86847.0,0.44104]